[Event "FIDE Grand Swiss 2023"]
[Site "Villa Marina, Douglas, Isle of Man"]
[Date "2023.10.25"]
[Round "1.49"]
[White "Krasenkow, Michal"]
[Black "Anton Guijarro, David"]
[Result "0-1"]
[WhiteElo "2531"]
[BlackElo "2653"]
[EventDate "2023.10.25"]
[ECO "E00"]
[PlyCount "112"]
[BlackFideId "2285525"]
[TimeControl "40/100 + 20/50 + 15 + 30s/move"]
[WhiteFideId "1113100"]

1.Nf3 {[%clk 01:40:56] [%emt 00:00:04]} 1...e6 {[%clk 01:39:58] [%emt 00:01:02]} 
2.c4 {[%clk 01:41:07] [%emt 00:00:19]} 2...d5 {[%clk 01:39:27] [%emt 00:01:02]} 
3.d4 {[%clk 01:41:26] [%emt 00:00:11]} 3...Nf6 {[%clk 01:39:19] [%emt 00:00:37]} 
4.g3 {[%clk 01:41:48] [%emt 00:00:08]} 4...Bb4+ {[%clk 01:38:58] [%emt
00:00:51]} 5.Bd2 {[%clk 01:42:12] [%emt 00:00:07]} 5...Be7 {[%clk 01:38:01]
[%emt 00:01:26]} 6.Bg2 {[%clk 01:42:35] [%emt 00:00:07]} 6...O-O {[%clk
01:38:22] [%emt 00:00:09]} 7.O-O {[%clk 01:43:02] [%emt 00:00:03]} 7...Nbd7 
{[%clk 01:38:29] [%emt 00:00:24]} 8.Qb3 {[%clk 01:43:25] [%emt 00:00:07]} 
8...c6 {[%clk 01:36:57] [%emt 00:02:02]} 9.Bg5 {[%clk 01:43:37] [%emt 00:00:18]} 
9...a5 {[%emt 00:05:24]} 10.Nbd2 {[%clk 01:43:59]} 10...h6 {[%clk 01:30:25]
[%emt 00:02:15]} 11.Bxf6 {[%clk 01:43:26] [%emt 00:01:03]} 11...Nxf6 {[%clk
01:29:51] [%emt 00:01:03]} 12.Ne5 {[%clk 01:43:47] [%emt 00:00:09]} 12...Qc7 
{[%clk 01:21:47] [%emt 00:08:35]} 13.Rac1 {[%clk 01:36:36] [%emt 00:07:40]} 
13...Rd8 {[%clk 01:21:04] [%emt 00:01:12]} 14.Rfd1 {[%clk 01:33:51] [%emt
00:03:16]} 14...Bd7 {[%clk 01:12:14] [%emt 00:09:20]} 15.e4 {[%clk 01:29:49]
[%emt 00:04:32]} 15...a4 {[%clk 01:07:47] [%emt 00:04:57]} 16.Qe3 {[%clk
01:23:46] [%emt 00:06:33]} 16...Be8 {[%clk 01:07:32] [%emt 00:00:45]} 17.f4 
{[%clk 01:20:13] [%emt 00:04:03]} 17...Bb4 {[%clk 00:56:42] [%emt 00:11:20]} 
18.a3 {[%clk 00:58:04] [%emt 00:22:39]} 18...Bxd2 {[%clk 00:55:41] [%emt
00:01:30]} 19.Rxd2 {[%clk 00:58:30] [%emt 00:00:05]} 19...Nxe4 {[%clk 00:55:15]
[%emt 00:00:56]} 20.Bxe4 {[%clk 00:58:29] [%emt 00:00:31]} 20...dxe4 {[%clk
00:55:39] [%emt 00:00:06]} 21.c5 {[%clk 00:57:50] [%emt 00:01:09]} 21...f5 
{[%clk 00:49:01] [%emt 00:07:08]} 22.Rc4 {[%clk 00:55:55] [%emt 00:02:25]} 
22...b6 {[%clk 00:37:20] [%emt 00:12:11]} 23.cxb6 {[%clk 00:54:33] [%emt
00:01:52]} 23...Qxb6 {[%clk 00:37:44] [%emt 00:00:06]} 24.Qc3 {[%clk 00:54:49]
[%emt 00:00:12]} 24...Ra6 {[%clk 00:31:25] [%emt 00:06:51]} 25.Rb4 {[%clk
00:37:21] [%emt 00:17:58]} 25...Qa7 {[%clk 00:30:25] [%emt 00:01:29]} 26.Rc2 
{[%clk 00:35:12] [%emt 00:02:39]} 26...Rd5 {[%clk 00:28:38] [%emt 00:02:17]} 
27.Kg2 {[%clk 00:34:56] [%emt 00:00:45]} 27...Kh7 {[%clk 00:25:45] [%emt
00:03:24]} 28.Qc4 {[%clk 00:33:49] [%emt 00:01:37]} 28...Qa8 {[%clk 00:24:26]
[%emt 00:01:49]} 29.Kf2 {[%clk 00:33:08] [%emt 00:01:11]} 29...Ra7 {[%emt
00:07:34]} 30.Qe2 {[%clk 00:27:23]} 30...Rb7 {[%clk 00:21:03] [%emt 00:03:04]} 
31.Rxb7 {[%clk 00:25:54] [%emt 00:02:00]} 31...Qxb7 {[%clk 00:21:28] [%emt
00:00:04]} 32.Qc4 {[%clk 00:25:30] [%emt 00:00:55]} 32...Qa7 {[%clk 00:17:17]
[%emt 00:04:41]} 33.Ke3 {[%clk 00:25:09] [%emt 00:00:51]} 33...g5 {[%clk
00:15:48] [%emt 00:01:59]} 34.Qb4 {[%clk 00:21:54] [%emt 00:03:45]} 34...gxf4+ 
{[%clk 00:15:25] [%emt 00:00:53]} 35.gxf4 {[%clk 00:22:00] [%emt 00:00:23]} 
35...Qg7 {[%clk 00:15:31] [%emt 00:00:24]} 36.Qe1 {[%clk 00:17:28] [%emt
00:05:03]} 36...Rb5 {[%clk 00:13:51] [%emt 00:02:10]} 37.Kd2 {[%clk 00:16:52]
[%emt 00:01:06]} 37...Rd5 {[%clk 00:08:33] [%emt 00:05:48]} 38.Ke3 {[%clk
00:16:02] [%emt 00:01:19]} 38...Qb7 {[%clk 00:05:21] [%emt 00:03:42]} 39.Qb4 
{[%clk 00:15:26] [%emt 00:01:06]} 39...Qxb4 {[%clk 00:02:53] [%emt 00:02:58]} 
40.axb4 {[%clk 00:15:53] [%emt 00:00:03]} 40...Rb5 {[%clk 00:03:02] [%emt
00:00:22]} 41.Rc4 {[%clk 00:13:29] [%emt 00:02:53]} 41...Kg7 {[%clk 00:32:12]
[%emt 00:21:21]} 42.Kd2 {[%clk 01:03:07] [%emt 00:00:52]} 42...Rb6 {[%clk
00:32:19] [%emt 00:00:22]} 43.Ke3 {[%clk 00:48:50] [%emt 00:14:48]} 43...Kf6 
{[%clk 00:29:56] [%emt 00:02:52]} 44.Kf2 {[%clk 00:48:35] [%emt 00:00:45]} 
44...Ke7 {[%clk 00:29:16] [%emt 00:01:10]} 45.Ke3 {[%clk 00:48:21] [%emt
00:00:44]} 45...Kd6 {[%clk 00:26:54] [%emt 00:02:52]} 46.Kf2 {[%clk 00:40:08]
[%emt 00:08:43]} 46...Rb5 {[%clk 00:18:21] [%emt 00:09:04]} 47.Ke3 {[%clk
00:39:52] [%emt 00:00:45]} 47...Kc7 {[%clk 00:17:41] [%emt 00:01:11]} 48.Kf2 
{[%clk 00:39:05] [%emt 00:01:16]} 48...Kb7 {[%clk 00:11:23] [%emt 00:06:47]} 
49.Ke3 {[%clk 00:17:58] [%emt 00:21:38]} 49...Ka6 {[%clk 00:11:32] [%emt
00:00:22]} 50.Kd2 {[%clk 00:16:56] [%emt 00:01:31]} 50...Rb7 {[%clk 00:11:34]
[%emt 00:00:29]} 51.Kc3 {[%clk 00:15:35] [%emt 00:01:51]} 51...Rg7 {[%clk
00:11:04] [%emt 00:00:59]} 52.Rc5 {[%clk 00:09:55] [%emt 00:06:10]} 52...Rg1 
{[%clk 00:08:04] [%emt 00:03:29]} 53.Nc4 {[%clk 00:10:10] [%emt 00:00:16]} 
53...Ka7 {[%clk 00:08:15] [%emt 00:00:18]} 54.Ra5+ {[%clk 00:03:43] [%emt
00:06:59]} 54...Kb8 {[%clk 00:08:42] [%emt 00:00:03]} 55.Ne3 {[%clk 00:03:55]
[%emt 00:00:17]} 55...Rc1+ {[%clk 00:08:24] [%emt 00:00:47]} 56.Kd2 {[%clk
00:04:20] [%emt 00:00:05]} 56...Rh1 {[%clk 00:08:36]} 0-1

[Event "FIDE Grand Swiss 2023"]
[Site "Villa Marina, Douglas, Isle of Man"]
[Date "2023.10.25"]
[Round "1.50"]
[White "Ivanchuk, Vasyl"]
[Black "Samunenkov, Ihor"]
[Result "1/2-1/2"]
[WhiteElo "2653"]
[BlackElo "2531"]
[EventDate "2023.10.25"]
[ECO "D31"]
[PlyCount "134"]
[BlackFideId "14187086"]
[TimeControl "40/100 + 20/50 + 15 + 30s/move"]
[WhiteFideId "14100010"]

1.d4 {[%clk 01:40:58] [%emt 00:00:01]} 1...d5 {[%clk 01:40:37] [%emt 00:00:23]} 
2.c4 {[%clk 01:41:24] [%emt 00:00:05]} 2...e6 {[%clk 01:40:53] [%emt 00:00:14]} 
3.Nc3 {[%clk 01:41:47] [%emt 00:00:08]} 3...a6 {[%clk 01:41:09] [%emt 00:00:14]} 
4.cxd5 {[%clk 01:41:55] [%emt 00:00:21]} 4...exd5 {[%clk 01:41:32] [%emt
00:00:07]} 5.Bf4 {[%clk 01:41:44] [%emt 00:00:40]} 5...Nf6 {[%clk 01:41:45]
[%emt 00:00:18]} 6.e3 {[%clk 01:42:08] [%emt 00:00:06]} 6...Bd6 {[%clk 01:42:05]
[%emt 00:00:09]} 7.Bg5 {[%clk 01:39:34] [%emt 00:03:04]} 7...c6 {[%clk 01:42:21]
[%emt 00:00:15]} 8.Bd3 {[%clk 01:39:55] [%emt 00:00:09]} 8...O-O {[%clk
01:42:17] [%emt 00:00:33]} 9.Qc2 {[%clk 01:39:14] [%emt 00:01:12]} 9...h6 
{[%clk 01:41:58] [%emt 00:00:48]} 10.Bh4 {[%clk 01:39:40] [%emt 00:00:04]} 
10...Re8 {[%clk 01:41:09] [%emt 00:01:19]} 11.Nge2 {[%clk 01:40:04] [%emt
00:00:06]} 11...Nbd7 {[%clk 01:39:14] [%emt 00:02:26]} 12.h3 {[%clk 01:38:47]
[%emt 00:01:46]} 12...Be7 {[%clk 01:37:48] [%emt 00:01:57]} 13.Bg3 {[%clk
01:32:34] [%emt 00:06:42]} 13...Nf8 {[%clk 01:30:02] [%emt 00:08:15]} 14.O-O 
{[%clk 01:32:34] [%emt 00:00:31]} 14...Ne6 {[%clk 01:27:29] [%emt 00:03:04]} 
15.a3 {[%clk 01:23:53] [%emt 00:09:11]} 15...Ng5 {[%clk 01:09:51] [%emt
00:18:07]} 16.Be5 {[%clk 01:15:50] [%emt 00:08:34]} 16...Nd7 {[%clk 00:57:57]
[%emt 00:12:23]} 17.Bf4 {[%clk 00:55:19] [%emt 00:21:02]} 17...Nf6 {[%clk
00:55:45] [%emt 00:02:40]} 18.f3 {[%clk 00:47:22] [%emt 00:08:29]} 18...c5 
{[%clk 00:51:45] [%emt 00:04:29]} 19.Qd2 {[%clk 00:46:33] [%emt 00:01:20]} 
19...b5 {[%clk 00:45:17] [%emt 00:06:58]} 20.Rad1 {[%clk 00:46:39] [%emt
00:00:24]} 20...Bb7 {[%clk 00:43:28] [%emt 00:02:19]} 21.Bf5 {[%clk 00:45:39]
[%emt 00:01:29]} 21...Qb6 {[%clk 00:35:37] [%emt 00:08:21]} 22.Be5 {[%clk
00:44:41] [%emt 00:01:29]} 22...Rad8 {[%clk 00:31:59] [%emt 00:04:07]} 23.dxc5 
{[%clk 00:42:38] [%emt 00:02:34]} 23...Bxc5 {[%clk 00:31:38] [%emt 00:00:50]} 
24.Bd4 {[%clk 00:43:04] [%emt 00:00:04]} 24...Bc8 {[%clk 00:23:55] [%emt
00:08:14]} 25.Bc2 {[%clk 00:39:53] [%emt 00:03:41]} 25...Ne6 {[%clk 00:23:03]
[%emt 00:01:21]} 26.Bxc5 {[%clk 00:40:20] [%emt 00:00:04]} 26...Nxc5 {[%clk
00:23:12] [%emt 00:00:22]} 27.Rfe1 {[%clk 00:37:43] [%emt 00:03:06]} 27...Bb7 
{[%clk 00:20:27] [%emt 00:03:14]} 28.Nd4 {[%clk 00:36:37] [%emt 00:01:36]} 
28...Ncd7 {[%clk 00:19:07] [%emt 00:01:51]} 29.Nce2 {[%clk 00:36:06] [%emt
00:01:00]} 29...Ne5 {[%emt 00:01:33]} 30.b3 {[%clk 00:36:34]} 30...Qc5 {[%clk
00:16:04] [%emt 00:02:33]} 31.Qa5 {[%clk 00:24:57] [%emt 00:12:08]} 31...Nc6 
{[%clk 00:11:34] [%emt 00:04:59]} 32.Nxc6 {[%clk 00:24:24] [%emt 00:01:02]} 
32...Qxc6 {[%clk 00:11:05] [%emt 00:01:00]} 33.Nd4 {[%clk 00:23:55] [%emt
00:00:59]} 33...Qd6 {[%clk 00:10:47] [%emt 00:00:48]} 34.a4 {[%clk 00:19:19]
[%emt 00:05:06]} 34...bxa4 {[%clk 00:09:31] [%emt 00:01:46]} 35.bxa4 {[%clk
00:15:48] [%emt 00:04:02]} 35...Bc8 {[%clk 00:09:34] [%emt 00:00:26]} 36.Qd2 
{[%clk 00:14:40] [%emt 00:01:38]} 36...Bd7 {[%clk 00:02:38] [%emt 00:07:26]} 
37.a5 {[%clk 00:14:40] [%emt 00:00:30]} 37...Rb8 {[%clk 00:01:04] [%emt
00:02:05]} 38.Bd3 {[%clk 00:10:53] [%emt 00:04:17]} 38...Rec8 {[%clk 00:00:59]
[%emt 00:00:34]} 39.Rb1 {[%clk 00:04:27] [%emt 00:06:56]} 39...Ne8 {[%clk
00:01:13] [%emt 00:00:16]} 40.Bf1 {[%clk 00:02:37] [%emt 00:02:19]} 40...Nc7 
{[%clk 00:00:34] [%emt 00:01:10]} 41.Rxb8 {[%clk 00:38:27] [%emt 00:14:40]} 
41...Rxb8 {[%clk 00:48:15] [%emt 00:02:49]} 42.Rc1 {[%clk 00:38:56] [%emt
00:00:02]} 42...g6 {[%clk 00:34:49] [%emt 00:13:55]} 43.Rc2 {[%clk 00:28:55]
[%emt 00:10:31]} 43...Nb5 {[%clk 00:29:13] [%emt 00:06:06]} 44.Rb2 {[%clk
00:20:57] [%emt 00:08:29]} 44...Nxd4 {[%clk 00:25:33] [%emt 00:04:10]} 45.exd4 
{[%clk 00:19:40] [%emt 00:01:47]} 45...Bb5 {[%clk 00:21:41] [%emt 00:04:21]} 
46.Bxb5 {[%clk 00:19:20] [%emt 00:00:51]} 46...Rxb5 {[%clk 00:20:05] [%emt
00:02:07]} 47.Rxb5 {[%clk 00:19:00] [%emt 00:00:50]} 47...axb5 {[%clk 00:20:28]
[%emt 00:00:08]} 48.Qa2 {[%clk 00:18:47] [%emt 00:00:41]} 48...Qa6 {[%clk
00:14:54] [%emt 00:06:04]} 49.Qa3 {[%clk 00:15:58] [%emt 00:03:19]} 49...h5 
{[%clk 00:12:01] [%emt 00:03:23]} 50.Kf2 {[%clk 00:09:03] [%emt 00:07:25]} 
50...Kg7 {[%clk 00:11:18] [%emt 00:01:12]} 51.g3 {[%clk 00:06:47] [%emt
00:02:48]} 51...g5 {[%clk 00:05:52] [%emt 00:05:56]} 52.Qb4 {[%clk 00:06:31]
[%emt 00:00:45]} 52...Kf6 {[%clk 00:03:07] [%emt 00:03:16]} 53.Ke3 {[%clk
00:05:25] [%emt 00:01:35]} 53...Ke6 {[%clk 00:02:34] [%emt 00:01:03]} 54.h4 
{[%clk 00:05:22] [%emt 00:00:33]} 54...gxh4 {[%clk 00:02:47] [%emt 00:00:17]} 
55.gxh4 {[%clk 00:05:52] [%emt 00:00:01]} 55...Kd7 {[%clk 00:01:47] [%emt
00:01:30]} 56.Kd2 {[%clk 00:04:36] [%emt 00:01:44]} 56...Qh6+ {[%clk 00:01:05]
[%emt 00:01:13]} 57.Kd1 {[%clk 00:03:41] [%emt 00:01:26]} 57...Qc6 {[%clk
00:00:57] [%emt 00:00:38]} 58.Qf8 {[%clk 00:03:21] [%emt 00:00:49]} 58...Qf6 
{[%clk 00:01:10] [%emt 00:00:17]} 59.Ke2 {[%clk 00:03:21] [%emt 00:00:30]} 
59...Qe6+ {[%clk 00:01:03] [%emt 00:00:38]} 60.Kd2 {[%clk 00:02:49] [%emt
00:00:59]} 60...Qf6 {[%clk 00:00:36] [%emt 00:01:00]} 61.Kc3 {[%clk 00:11:17]
[%emt 00:07:02]} 61...Qxf3+ {[%clk 00:13:20] [%emt 00:02:46]} 62.Kb4 {[%clk
00:11:45] [%emt 00:00:02]} 62...Qf1 {[%clk 00:12:22] [%emt 00:01:27]} 63.a6 
{[%clk 00:10:44] [%emt 00:01:31]} 63...Qc4+ {[%clk 00:12:20] [%emt 00:00:32]} 
64.Ka5 {[%clk 00:11:07] [%emt 00:00:07]} 64...Qc7+ {[%clk 00:12:11] [%emt
00:00:40]} 65.Kb4 {[%clk 00:10:27] [%emt 00:01:09]} 65...Qc4+ {[%clk 00:12:09]
[%emt 00:00:33]} 66.Ka5 {[%clk 00:10:52] [%emt 00:00:05]} 66...Qc7+ {[%clk
00:12:32] [%emt 00:00:07]} 67.Kb4 {[%clk 00:11:19] [%emt 00:00:03]} 67...Qc4+ 
{[%clk 00:12:44] [%emt 00:00:18]} 1/2-1/2

[Event "FIDE Grand Swiss 2023"]
[Site "Villa Marina, Douglas, Isle of Man"]
[Date "2023.10.25"]
[Round "1.51"]
[White "Gurel, Ediz"]
[Black "Bartel, Mateusz"]
[Result "1/2-1/2"]
[WhiteElo "2514"]
[BlackElo "2651"]
[EventDate "2023.10.25"]
[ECO "C08"]
[PlyCount "66"]
[BlackFideId "1112635"]
[TimeControl "40/100 + 20/50 + 15 + 30s/move"]
[WhiteFideId "44507356"]

1.e4 {[%clk 01:40:55] [%emt 00:00:04]} 1...e6 {[%clk 01:40:50] [%emt 00:00:10]} 
2.d4 {[%clk 01:41:06] [%emt 00:00:20]} 2...d5 {[%clk 01:41:13] [%emt 00:00:06]} 
3.Nd2 {[%clk 01:41:13] [%emt 00:00:23]} 3...c5 {[%clk 01:41:28] [%emt 00:00:14]} 
4.exd5 {[%clk 01:41:02] [%emt 00:00:42]} 4...exd5 {[%clk 01:41:49] [%emt
00:00:09]} 5.Ngf3 {[%clk 01:40:05] [%emt 00:01:27]} 5...Nf6 {[%clk 01:42:09]
[%emt 00:00:09]} 6.Bb5+ {[%clk 01:31:02] [%emt 00:09:35]} 6...Bd7 {[%clk
01:42:34] [%emt 00:00:03]} 7.Bxd7+ {[%clk 01:30:10] [%emt 00:01:23]} 7...Nbxd7 
{[%clk 01:42:57] [%emt 00:00:06]} 8.O-O {[%clk 01:30:23] [%emt 00:00:17]} 
8...Be7 {[%clk 01:43:22] [%emt 00:00:05]} 9.dxc5 {[%clk 01:28:01] [%emt
00:02:53]} 9...Nxc5 {[%clk 01:43:45] [%emt 00:00:07]} 10.Nd4 {[%clk 01:26:22]
[%emt 00:02:10]} 10...Qd7 {[%clk 01:44:00] [%emt 00:00:15]} 11.N2f3 {[%clk
01:25:14] [%emt 00:01:38]} 11...Bd6 {[%clk 01:17:27] [%emt 00:27:02]} 12.Qe2+ 
{[%clk 01:15:43] [%emt 00:10:00]} 12...Nce4 {[%clk 01:16:35] [%emt 00:01:22]} 
13.Qb5 {[%clk 01:14:36] [%emt 00:01:38]} 13...Rc8 {[%clk 01:11:50] [%emt
00:05:15]} 14.c3 {[%clk 01:09:16] [%emt 00:05:50]} 14...Qxb5 {[%clk 01:09:27]
[%emt 00:02:53]} 15.Nxb5 {[%clk 01:09:40] [%emt 00:00:06]} 15...Bb8 {[%clk
01:09:50] [%emt 00:00:07]} 16.h3 {[%clk 01:06:21] [%emt 00:03:49]} 16...O-O 
{[%clk 01:01:46] [%emt 00:08:33]} 17.Be3 {[%clk 01:06:12] [%emt 00:00:40]} 
17...a6 {[%clk 01:02:08] [%emt 00:00:08]} 18.Nbd4 {[%clk 01:06:25] [%emt
00:00:17]} 18...Rfe8 {[%clk 01:01:53] [%emt 00:00:45]} 19.Rad1 {[%clk 01:01:55]
[%emt 00:05:00]} 19...h6 {[%clk 01:00:48] [%emt 00:01:34]} 20.Rfe1 {[%clk
01:01:21] [%emt 00:01:05]} 20...Kh7 {[%clk 00:59:19] [%emt 00:01:58]} 21.Nc2 
{[%clk 00:54:53] [%emt 00:06:59]} 21...Bd6 {[%clk 00:54:04] [%emt 00:05:44]} 
22.Bd4 {[%clk 00:52:36] [%emt 00:02:48]} 22...b5 {[%clk 00:51:10] [%emt
00:03:24]} 23.Ne3 {[%clk 00:49:23] [%emt 00:03:43]} 23...Rcd8 {[%clk 00:46:18]
[%emt 00:05:22]} 24.Kf1 {[%clk 00:47:43] [%emt 00:02:10]} 24...Bc7 {[%clk
00:43:42] [%emt 00:03:06]} 25.g4 {[%clk 00:37:07] [%emt 00:11:06]} 25...Ng8 
{[%clk 00:37:26] [%emt 00:06:46]} 26.Re2 {[%clk 00:32:59] [%emt 00:04:39]} 
26...g6 {[%clk 00:26:14] [%emt 00:11:41]} 27.h4 {[%clk 00:24:20] [%emt
00:09:09]} 27...Re6 {[%clk 00:21:11] [%emt 00:05:33]} 28.Kg2 {[%clk 00:15:31]
[%emt 00:09:19]} 28...Ne7 {[%clk 00:18:21] [%emt 00:03:21]} 29.Rh1 {[%clk
00:13:11] [%emt 00:02:49]} 29...Nc6 {[%clk 00:15:31] [%emt 00:03:20]} 30.Rhe1 
{[%clk 00:12:05] [%emt 00:01:36]} 30...f5 {[%clk 00:15:00] [%emt 00:01:00]} 
31.Rh1 {[%clk 00:09:50] [%emt 00:02:47]} 31...Bf4 {[%clk 00:08:07] [%emt
00:07:23]} 32.gxf5 {[%clk 00:08:43] [%emt 00:01:37]} 32...gxf5 {[%clk 00:08:34]
[%emt 00:00:02]} 33.Kf1 {[%clk 00:06:49] [%emt 00:02:24]} 33...Nxd4 {[%clk
00:06:07] [%emt 00:02:57]} 1/2-1/2

[Event "FIDE Grand Swiss 2023"]
[Site "Villa Marina, Douglas, Isle of Man"]
[Date "2023.10.25"]
[Round "1.52"]
[White "Narayanan.S.L"]
[Black "Rodrigue-Lemieux, Shawn"]
[Result "1-0"]
[WhiteElo "2651"]
[BlackElo "2488"]
[EventDate "2023.10.25"]
[ECO "B12"]
[PlyCount "89"]
[BlackFideId "2620049"]
[TimeControl "40/100 + 20/50 + 15 + 30s/move"]
[WhiteFideId "5058422"]

1.e4 {[%clk 01:40:56] [%emt 00:00:04]} 1...c6 {[%clk 01:40:51] [%emt 00:00:10]} 
2.d4 {[%clk 01:41:18] [%emt 00:00:07]} 2...d5 {[%clk 01:41:15] [%emt 00:00:07]} 
3.e5 {[%clk 01:41:42] [%emt 00:00:05]} 3...Bf5 {[%clk 01:41:38] [%emt 00:00:07]} 
4.Nf3 {[%clk 01:42:07] [%emt 00:00:05]} 4...e6 {[%clk 01:41:59] [%emt 00:00:10]} 
5.Be2 {[%clk 01:42:28] [%emt 00:00:08]} 5...Ne7 {[%clk 01:42:22] [%emt
00:00:08]} 6.c3 {[%clk 01:42:46] [%emt 00:00:12]} 6...Ng6 {[%clk 01:33:10] [%emt
00:09:41]} 7.a4 {[%clk 01:43:09] [%emt 00:00:08]} 7...Be7 {[%clk 01:22:16] [%emt
00:11:23]} 8.O-O {[%clk 01:42:37] [%emt 00:01:02]} 8...Nd7 {[%clk 01:19:45]
[%emt 00:03:02]} 9.Na3 {[%clk 01:35:15] [%emt 00:07:51]} 9...Bg4 {[%clk
00:50:22] [%emt 00:29:54]} 10.Nc2 {[%clk 01:32:10] [%emt 00:03:35]} 10...O-O 
{[%clk 00:48:32] [%emt 00:02:20]} 11.Ne3 {[%clk 01:26:45] [%emt 00:05:55]} 
11...Bxf3 {[%clk 00:48:53] [%emt 00:00:09]} 12.Bxf3 {[%clk 01:27:09] [%emt
00:00:05]} 12...f6 {[%clk 00:44:29] [%emt 00:04:54]} 13.exf6 {[%clk 01:26:29]
[%emt 00:01:10]} 13...Nxf6 {[%clk 00:35:27] [%emt 00:09:32]} 14.g3 {[%clk
01:22:21] [%emt 00:04:37]} 14...e5 {[%clk 00:33:02] [%emt 00:02:56]} 15.h4 
{[%clk 01:22:08] [%emt 00:00:43]} 15...e4 {[%clk 00:31:23] [%emt 00:02:09]} 
16.Bg2 {[%clk 01:18:51] [%emt 00:03:47]} 16...Bd6 {[%clk 00:28:23] [%emt
00:03:31]} 17.Bh3 {[%clk 01:06:10] [%emt 00:13:10]} 17...Qe8 {[%clk 00:27:30]
[%emt 00:01:24]} 18.Nf5 {[%clk 00:59:02] [%emt 00:07:37]} 18...Bc7 {[%clk
00:27:52] [%emt 00:00:08]} 19.Qb3 {[%clk 00:57:38] [%emt 00:01:55]} 19...Rf7 
{[%clk 00:26:10] [%emt 00:02:12]} 20.c4 {[%clk 00:55:39] [%emt 00:02:28]} 
20...dxc4 {[%clk 00:24:18] [%emt 00:02:22]} 21.Qxc4 {[%clk 00:55:42] [%emt
00:00:28]} 21...Nd5 {[%clk 00:24:46] [%emt 00:00:02]} 22.Qe2 {[%clk 00:55:10]
[%emt 00:01:02]} 22...Nb4 {[%clk 00:18:41] [%emt 00:06:35]} 23.Bd2 {[%clk
00:48:19] [%emt 00:07:21]} 23...a5 {[%clk 00:10:04] [%emt 00:09:07]} 24.Qg4 
{[%clk 00:38:46] [%emt 00:10:02]} 24...Nc2 {[%clk 00:08:05] [%emt 00:02:29]} 
25.Rac1 {[%clk 00:38:43] [%emt 00:00:34]} 25...Rxf5 {[%clk 00:08:19] [%emt
00:00:16]} 26.Rxc2 {[%clk 00:39:06] [%emt 00:00:06]} 26...Rd5 {[%clk 00:07:58]
[%emt 00:00:52]} 27.Bc3 {[%clk 00:31:15] [%emt 00:08:21]} 27...e3 {[%clk
00:03:44] [%emt 00:04:43]} 28.h5 {[%clk 00:30:23] [%emt 00:01:22]} 28...Nf8 
{[%clk 00:03:12] [%emt 00:01:03]} 29.h6 {[%clk 00:29:45] [%emt 00:01:07]} 
29...Qg6 {[%clk 00:02:40] [%emt 00:01:03]} 30.Qxg6 {[%clk 00:26:47] [%emt
00:03:28]} 30...hxg6 {[%clk 00:03:08] [%emt 00:00:02]} 31.hxg7 {[%clk 00:25:35]
[%emt 00:01:41]} 31...Kxg7 {[%clk 00:03:36] [%emt 00:00:02]} 32.fxe3 {[%clk
00:22:24] [%emt 00:03:42]} 32...Bxg3 {[%clk 00:04:01] [%emt 00:00:04]} 33.Rg2 
{[%clk 00:21:39] [%emt 00:01:15]} 33...Bd6 {[%clk 00:01:10] [%emt 00:03:21]} 
34.e4 {[%clk 00:20:30] [%emt 00:01:39]} 34...Rh5 {[%clk 00:01:38] [%emt
00:00:02]} 35.Bg4 {[%clk 00:20:50] [%emt 00:00:10]} 35...Rh4 {[%clk 00:02:03]
[%emt 00:00:06]} 36.d5+ {[%clk 00:12:40] [%emt 00:08:40]} 36...Kg8 {[%clk
00:01:10] [%emt 00:01:22]} 37.Rf6 {[%clk 00:13:03] [%emt 00:00:07]} 37...Bc5+ 
{[%clk 00:01:17] [%emt 00:00:24]} 38.Kf1 {[%clk 00:13:29] [%emt 00:00:03]} 
38...cxd5 {[%clk 00:01:08] [%emt 00:00:40]} 39.exd5 {[%clk 00:13:33] [%emt
00:00:25]} 39...Rh1+ {[%clk 00:00:34] [%emt 00:01:05]} 40.Ke2 {[%clk 00:13:57]
[%emt 00:00:05]} 40...Re8+ {[%clk 00:00:34] [%emt 00:00:31]} 41.Be6+ {[%clk
00:11:33] [%emt 00:02:54]} 41...Kh7 {[%clk 00:46:56] [%emt 00:04:08]} 42.Rf7+ 
{[%clk 00:59:21] [%emt 00:02:43]} 42...Kh6 {[%clk 00:47:23] [%emt 00:00:02]} 
43.Bd2+ {[%clk 00:58:05] [%emt 00:01:47]} 43...Kh5 {[%clk 00:45:09] [%emt
00:02:43]} 44.Rg5+ {[%clk 00:58:15] [%emt 00:00:21]} 44...Kh4 {[%clk 00:45:21]
[%emt 00:00:18]} 45.Rf4+ {[%clk 00:58:28] [%emt 00:00:17]} 1-0